fUSD/lending_fUSD_20251118
["ID","MTS","AMOUNT","RATE_DAILY","PERIOD"]
[394300717,1763433040498,-442.26019812,0.00017999,2]
[394300718,1763433040509,-500.0,0.00017999,2]
[394300719,1763433040519,-503.68960878,0.00017999,2]
[394300720,1763433040529,-145465.15587744,0.00018,2]
[394300721,1763433040552,-17785.9246171,0.00018,2]
[394300722,1763433040564,-2291.15,0.00018,2]
[394300723,1763433040575,-2197.2865844,0.00018,2]
[394300724,1763433040592,-4575.55,0.00018,2]
[394300760,1763433043063,-574.57253037,0.000177,2]
[394300761,1763433043077,-3999.12746963,0.00018,2]
[394300804,1763433057859,-685131.35509051,0.00018,2]
[394300805,1763433057868,-171.74613388,0.00018,2]
[394300806,1763433057877,-340.30335997,0.00018,2]
[394300807,1763433057886,-150.48386612,0.00018,2]
[394300808,1763433057896,-130285.31665295,0.00018,2]
[394300809,1763433057904,-151.0,0.00018,2]
[394300810,1763433057914,-153.884434,0.00018,2]
[394300811,1763433057923,-660.837438,0.00018,2]
[394300812,1763433057932,-660.837438,0.00018,2]
[394300813,1763433057942,-660.837438,0.00018,2]
[394300814,1763433057951,-660.837438,0.00018,2]
[394300815,1763433057960,-150.0,0.00018009,2]
[394300816,1763433057968,-500.0,0.00018014,2]
[394300817,1763433057978,-150.0,0.00018036,2]
[394300818,1763433057987,-150.0,0.00018036,2]
[394300819,1763433058000,-500.0,0.00018036,2]
[394300820,1763433058009,-150.0,0.00018036,2]
[394300821,1763433058018,-500.0,0.00018036,2]
[394300822,1763433058027,-1000.0,0.00018037,2]
[394300823,1763433058036,-166.66,0.00018041,2]
[394300824,1763433058045,-258.91,0.00018047,2]
[394300825,1763433058054,-150.0,0.00018057,2]
[394300826,1763433058064,-610.0,0.00018075,2]
[394300827,1763433058074,-150.0,0.00018075,2]
[394300828,1763433058083,-150.0,0.00018075,2]
[394300829,1763433058092,-150.0,0.00018097,2]
[394300830,1763433058101,-150.0,0.00018097,2]
[394300831,1763433058110,-150.0,0.00018142,2]
[394300832,1763433058119,-500.0,0.00018151,2]
[394300833,1763433058128,-150.0,0.0001816,2]
[394300834,1763433058138,-225.83205311,0.00018173,2]
[394300835,1763433058147,-202.65214022,0.00018173,2]
[394300836,1763433058157,-500.0,0.00018173,2]
[394300837,1763433058166,-236.51564542,0.00018173,2]
[394300838,1763433058175,-500.0,0.00018173,2]
[394300839,1763433058184,-150.0,0.00018175,2]
[394300840,1763433058193,-465.4118,0.0001818,2]
[394300841,1763433058203,-150.0,0.00018208,2]
[394300842,1763433058214,-6426.66,0.00018212,2]
[394300843,1763433058224,-150.0,0.00018238,2]
[394300844,1763433058233,-150.0,0.00018274,2]
[394300845,1763433058241,-150.0,0.00018274,2]
[394300846,1763433058302,-150.0,0.00018274,2]
[394300847,1763433058311,-500.0,0.00018288,2]
[394300848,1763433058320,-500.0,0.0001831,2]
[394300849,1763433058329,-500.0,0.0001831,2]
[394300850,1763433058338,-150.0,0.00018318,2]
[394300851,1763433058347,-150.0,0.00018318,2]
[394300852,1763433058355,-1008.14471403,0.00018321,2]
[394300853,1763433058365,-1001.98604799,0.00018321,2]
[394300854,1763433058374,-1000.0,0.00018321,2]
[394300855,1763433058383,-258.91,0.00018321,2]
[394300856,1763433058392,-150.0,0.00018373,2]
[394300857,1763433058401,-150.0,0.00018406,2]
[394300858,1763433058410,-150.0,0.00018418,2]
[394300859,1763433058419,-500.0,0.00018425,2]
[394300860,1763433058427,-150.0,0.00018428,2]
[394300861,1763433058436,-150.0,0.00018444,2]
[394300862,1763433058449,-500.0,0.00018447,2]
[394300863,1763433058458,-500.0,0.00018447,2]
[394300864,1763433058467,-150.0,0.00018473,2]
[394300865,1763433058476,-150.0,0.00018473,2]
[394300866,1763433058485,-503.95240411,0.00018521,2]
[394300867,1763433058494,-505.37675888,0.00018521,2]
[394300868,1763433058503,-503.08130147,0.00018521,2]
[394300869,1763433058512,-501.68918807,0.00018521,2]
[394300870,1763433058521,-852.81716112,0.00018521,2]
[394300871,1763433058530,-390.54959761,0.00018521,2]
[394300872,1763433058539,-150.0,0.00018539,2]
[394300873,1763433058548,-150.0,0.00018539,2]
[394300874,1763433058558,-150.0,0.00018539,2]
[394300875,1763433058567,-150.0,0.00018539,2]
[394300876,1763433058577,-5391.46803672,0.0001856,2]
[394300877,1763433058586,-500.0,0.00018562,2]
[394300878,1763433058595,-150.0,0.00018572,2]
[394300879,1763433058605,-500.0,0.00018584,2]
[394300880,1763433058614,-500.0,0.00018584,2]
[394300881,1763433058624,-258.91,0.00018595,2]
[394300882,1763433058633,-150.0,0.00018599,2]
[394300883,1763433058642,-519.0,0.00018603,2]
[394300884,1763433058651,-150.0,0.00018649,2]
[394300885,1763433058661,-1680.0,0.00018659,2]
[394300886,1763433058670,-150.0,0.00018671,2]
[394300887,1763433058679,-150.0,0.00018671,2]
[394300888,1763433058688,-150.0,0.00018671,2]
[394300889,1763433058697,-465.4118,0.0001868,2]
[394300890,1763433058706,-500.0,0.00018699,2]
[394300891,1763433058715,-195.0,0.000187,2]
[394300892,1763433058724,-195.0,0.000187,2]
[394300893,1763433058733,-6426.66,0.00018704,2]
[394300894,1763433058743,-258.169424,0.00018705,2]
[394300895,1763433058752,-250.0,0.00018719,2]
[394300896,1763433058763,-195.0,0.00018719,2]
[394300897,1763433058772,-2115.9899517,0.00018719,2]
[394300898,1763433058781,-500.0,0.00018721,2]
[394300899,1763433058790,-511.32073067,0.00018721,2]
[394300900,1763433058799,-660.837438,0.00018721,2]
[394300901,1763433058809,-660.837438,0.00018721,2]
[394300902,1763433058819,-660.837438,0.00018721,2]
[394300903,1763433058828,-660.837438,0.00018721,2]
[394300904,1763433058837,-150.0,0.00018728,2]
[394300905,1763433058846,-150.0,0.0001876,2]
[394300906,1763433058855,-150.0,0.0001876,2]
[394300907,1763433058863,-151.0,0.0001877,2]
[394300908,1763433058872,-151.0,0.0001877,2]
[394300909,1763433058882,-151.0,0.0001877,2]
[394300910,1763433058890,-151.0,0.0001877,2]
[394300911,1763433058899,-150.0,0.00018771,2]
[394300912,1763433058908,-271.51,0.00018776,2]
[394300913,1763433058917,-150.0,0.0001878,2]
[394300914,1763433058927,-150.0,0.00018804,2]
[394300915,1763433058936,-500.0,0.00018836,2]
[394300916,1763433058946,-500.0,0.00018858,2]
[394300917,1763433058955,-258.95520826,0.00018868,2]
[394300918,1763433058963,-1503.90870723,0.00018868,2]
[394300919,1763433058972,-150.0,0.0001887,2]
[394300920,1763433058981,-150.0,0.0001887,2]
[394300921,1763433058990,-150.0,0.0001887,2]
[394300922,1763433059003,-150.0,0.0001887,2]
[394300923,1763433059015,-150.0,0.0001887,2]
[394300924,1763433059024,-150.0,0.0001887,2]
[394300925,1763433059035,-1600.0,0.000189,6]
[394300926,1763433059044,-150.0,0.00018936,2]
[394300927,1763433059053,-150.0,0.0001896,2]
[394300928,1763433059062,-150.0,0.00018969,2]
[394300929,1763433059072,-500.83453112,0.00018973,2]
[394300930,1763433059083,-500.0,0.00018973,2]
[394300931,1763433059092,-150.0,0.0001898,2]
[394300932,1763433059101,-150.0,0.0001898,2]
[394300933,1763433059110,-500.0,0.00018995,2]
[394300934,1763433059119,-1187318.20066727,0.00019,2]
[394300935,1763433059128,-2148.29498408,0.00019,2]
[394300936,1763433059137,-183.50562555,0.00019,2]
[394300937,1763433059147,-151.0,0.00019,2]
[394300938,1763433059155,-151.0,0.00019,2]
[394300939,1763433059165,-151.0,0.00019,2]
[394300940,1763433059174,-151.0,0.00019,2]
[394300941,1763433059190,-660.837438,0.00019,2]
[394300942,1763433059208,-660.837438,0.00019,2]
[394300943,1763433059220,-660.837438,0.00019,2]
[394300944,1763433059232,-660.837438,0.00019,2]
[394300945,1763433059241,-150.0,0.00019012,2]
[394300946,1763433059250,-150.0,0.00019068,2]
[394300947,1763433059263,-150.0,0.00019068,2]
[394300948,1763433059272,-150.0,0.00019068,2]
[394300949,1763433059281,-150.0,0.00019091,2]
[394300950,1763433059290,-500.0,0.0001911,2]
[394300951,1763433059299,-500.0,0.00019132,2]
[394300952,1763433059308,-150.0,0.00019141,2]
[394300953,1763433059316,-150.0,0.00019168,2]
[394300954,1763433059325,-3013.29709407,0.00019178,2]
[394300955,1763433059335,-154.235253,0.00019178,2]
[394300956,1763433059344,-272.862244,0.00019178,2]
[394300957,1763433059353,-272.862244,0.00019178,2]
[394300958,1763433059363,-272.862244,0.00019178,2]
[394300959,1763433059372,-272.862244,0.00019178,2]
[394300960,1763433059382,-272.862244,0.00019178,2]
[394300961,1763433059391,-272.862244,0.00019178,2]
[394300962,1763433059400,-272.862244,0.00019178,2]
[394300963,1763433059409,-272.862244,0.00019178,2]
[394300964,1763433059418,-195.89,0.0001918,2]
[394300965,1763433059427,-465.4118,0.0001918,2]
[394300966,1763433059436,-150.0,0.00019201,4]
[394300967,1763433059445,-150.0,0.00019201,4]
[394300968,1763433059454,-150.0,0.00019201,4]
[394300969,1763433059464,-150.0,0.00019201,4]
[394300970,1763433059473,-430.97,0.00019205,2]
[394300971,1763433059482,-500.0,0.00019247,2]
[394300972,1763433059492,-150.0,0.00019267,4]
[394300973,1763433059501,-150.0,0.00019267,4]
[394300974,1763433059510,-500.0,0.00019269,2]
[394300975,1763433059520,-150.0,0.00019295,4]
[394300976,1763433059529,-150.0,0.00019311,4]
[394300977,1763433059538,-150.0,0.00019321,4]
[394300978,1763433059547,-150.0,0.00019333,4]
[394300979,1763433059557,-150.0,0.00019366,4]
[394300980,1763433059566,-500.0,0.00019384,2]
[394300981,1763433059575,-500.0,0.00019406,2]
[394300982,1763433059584,-5391.46803672,0.00019419,2]
[394300983,1763433059593,-150.0,0.00019422,4]
[394300984,1763433059602,-150.0,0.00019422,4]
[394300985,1763433059611,-150.0,0.00019466,4]
[394300986,1763433059620,-150.0,0.00019466,4]
[394300987,1763433059629,-150.0,0.00019466,4]
[394300988,1763433059638,-310.21511472,0.000195,7]
[394300989,1763433059647,-150.0,0.00019502,4]
[394300990,1763433059656,-500.0,0.00019521,2]
[394300991,1763433059664,-150.0,0.00019532,4]
[394300992,1763433059673,-500.0,0.00019543,2]
[394300993,1763433059682,-150.0,0.00019565,4]
[394300994,1763433059692,-150.0,0.00019579,4]
[394300995,1763433059700,-150.0,0.00019598,4]
[394300996,1763433059710,-150.0,0.00019642,4]
[394300997,1763433059719,-150.0,0.00019642,4]
[394300998,1763433059728,-322.83317439,0.00019658,2]
[394300999,1763433059736,-150.0,0.00019664,4]
[394301000,1763433059745,-150.0,0.00019664,4]
[394301001,1763433059754,-168.03169681,0.0001968,2]
[394301002,1763433059763,-465.4118,0.0001968,2]
[394301003,1763433059772,-150.0,0.00019682,4]
[394301004,1763433059781,-150.0,0.00019731,4]
[394301005,1763433059792,-150.0,0.00019753,4]
[394301006,1763433059801,-150.0,0.00019764,4]
[394301007,1763433059812,-491.43591556,0.0001985,2]
[394301008,1763433059821,-153.62806187,0.00019863,4]
[394301009,1763433059830,-178.84938128,0.00019863,4]
[394301010,1763433059839,-270.04374448,0.00019863,4]
[394301011,1763433059847,-226.27000575,0.00019863,4]
[394301012,1763433059856,-162.19986855,0.00019863,4]
[394301013,1763433059865,-150.41147425,0.00019863,4]
[394301014,1763433059874,-151.48800402,0.00019863,4]
[394301015,1763433059883,-229.6557478,0.00019863,4]
[394301016,1763433059892,-150.91340114,0.00019863,4]
[394301017,1763433059901,-151.70766562,0.00019863,4]
[394301018,1763433059910,-153.07089787,0.00019863,4]
[394301019,1763433059919,-152.85451991,0.00019863,4]
[394301020,1763433059928,-218462.02988079,0.00019879,2]
[394301021,1763433059937,-151.0,0.00019879,2]
[394301022,1763433059947,-151.0,0.00019879,2]
[394301023,1763433059956,-259.549243,0.00019879,2]
[394301024,1763433059965,-272.862244,0.00019879,2]
[394301025,1763433059974,-272.862244,0.00019879,2]
[394301026,1763433059983,-272.862244,0.00019879,2]
[394301027,1763433059993,-272.862244,0.00019879,2]
[394301028,1763433060008,-151.0,0.00019879,2]
[394301029,1763433060018,-660.837438,0.00019879,2]
[394301030,1763433060028,-660.837438,0.00019879,2]
[394301031,1763433060039,-660.837438,0.00019879,2]
[394301032,1763433060049,-660.837438,0.00019879,2]
[394301033,1763433060058,-2100.0,0.000199,7]
[394301034,1763433060069,-206.19675439,0.00019921,2]
[394301035,1763433060078,-353230.83652541,0.0001995,15]
[394301036,1763433060088,-151.0,0.0001995,2]
[394301037,1763433060097,-140291.2595727,0.0001995,15]
[394301038,1763433060106,-276.386593,0.0001995,2]
[394301039,1763433060116,-151.0,0.0001995,2]
[394301040,1763433060125,-272.862244,0.0001995,2]
[394301041,1763433060134,-272.862244,0.0001995,2]
[394301042,1763433060143,-272.862244,0.0001995,2]
[394301043,1763433060152,-272.862244,0.0001995,2]
[394301044,1763433060161,-151.0,0.0001995,2]
[394301045,1763433060170,-660.837438,0.0001995,2]
[394301046,1763433060180,-660.837438,0.0001995,2]
[394301047,1763433060189,-660.837438,0.0001995,2]
[394301048,1763433060198,-261.11209941,0.00019973,2]
[394301049,1763433060207,-118731.49039169,0.0001999,2]
[394301050,1763433060216,-151.0,0.0001999,2]
[394301051,1763433060226,-272.862244,0.0001999,2]
[394301052,1763433060235,-272.862244,0.0001999,2]
[394301053,1763433060246,-272.862244,0.0001999,2]
[394301054,1763433060254,-272.862241,0.0001999,2]
[394301055,1763433060266,-162.690456,0.0001999,2]
[394301056,1763433060275,-1104.6014454,0.00020173,2]
[394301057,1763433060284,-6013.8174498,0.00020173,2]
[394301058,1763433060293,-6938.4271649,0.00020173,2]
[394301059,1763433060303,-1465.8920741,0.00020173,2]
[394301060,1763433060312,-3358.8019068,0.00020173,2]
[394301061,1763433060322,-465.4118,0.0002018,2]
[394301062,1763433060331,-600.84,0.00020187,2]
[394301063,1763433060341,-172.89,0.00020231,2]
[394301064,1763433060350,-4330.372166,0.00020239,2]
[394301065,1763433060360,-1181.83317,0.00020239,2]
[394301066,1763433060369,-5391.46803672,0.00020279,2]
[394301067,1763433060379,-1000.0,0.00020292,2]
[394301068,1763433060388,-1188.0,0.00020481,2]
[394301069,1763433060397,-151.0,0.00020548,2]
[394301070,1763433060407,-151.0,0.00020548,2]
[394301071,1763433060416,-151.0,0.00020548,2]
[394301072,1763433060425,-151.0,0.00020548,2]
[394301073,1763433060435,-151.0,0.00020548,2]
[394301074,1763433060444,-151.0,0.00020548,2]
[394301075,1763433060454,-151.0,0.00020548,2]
[394301076,1763433060463,-151.0,0.00020548,2]
[394301077,1763433060473,-151.0,0.00020548,2]
[394301078,1763433060482,-151.0,0.00020548,2]
[394301079,1763433060492,-151.0,0.00020548,2]
[394301080,1763433060501,-151.0,0.00020548,2]
[394301081,1763433060513,-151.0,0.00020548,2]
[394301082,1763433060523,-151.0,0.00020548,2]
[394301083,1763433060532,-151.0,0.00020548,2]
[394301084,1763433060542,-151.0,0.00020548,2]
[394301085,1763433060552,-151.0,0.00020548,2]
[394301086,1763433060562,-151.0,0.00020548,2]
[394301087,1763433060571,-151.0,0.00020548,2]
[394301088,1763433060581,-151.0,0.00020548,2]
[394301089,1763433060591,-151.0,0.00020548,2]
[394301090,1763433060601,-239.106541,0.00020548,2]
[394301091,1763433060610,-195.89,0.00020618,2]
[394301092,1763433060619,-246.4698974,0.00020681,2]
[394301093,1763433060629,-1341.8640506,0.00020681,2]
[394301094,1763433060638,-1548.1723644,0.00020681,2]
[394301095,1763433060647,-327.0847332,0.00020681,2]
[394301096,1763433060657,-749.4500073,0.00020681,2]
[394301097,1763433060666,-966.2366349,0.00020761,2]
[394301098,1763433060676,-263.7026244,0.00020761,2]
[394301099,1763433060685,-151.590482,0.00021129,2]
[394301100,1763433060695,-5391.46803672,0.00021139,2]
[394301101,1763433060705,-430.97,0.00021338,2]
[394301102,1763433060714,-339.46907593,0.00021845,2]
[394301103,1763433060723,-5000.0,0.00021918,2]
[394301104,1763433060732,-5391.46803672,0.00021998,2]
[394301105,1763433060741,-6853.56964993,0.00022,15]
[394301106,1763433060750,-11216.92,0.00022,7]
[394301107,1763433060764,-151.0,0.00022,2]
[394301108,1763433060776,-298.814415,0.00022,2]
[394301109,1763433060786,-195.89,0.00022057,2]
[394301110,1763433060795,-1071.13400597,0.00022299,2]
[394301111,1763433060805,-791.0,0.00022466,2]
[394301112,1763433060814,-1000.0,0.00022546,2]
[394301113,1763433060823,-1005.0,0.000227,2]
[394301114,1763433060832,-5391.46803672,0.00022858,2]
[394301115,1763433060841,-419.38956847,0.00023007,2]
[394301116,1763433060850,-172.89,0.00023122,2]
[394301117,1763433060859,-194.75,0.00023202,2]
[394301118,1763433060868,-5235.44,0.00023368,2]
[394301119,1763433060877,-430.97,0.00023472,2]
[394301120,1763433060886,-479.1746172,0.00023543,2]
[394301121,1763433060895,-5391.46803672,0.00023718,2]
[394301122,1763433060904,-609.8,0.00023754,2]
[394301123,1763433060913,-150.8,0.00023763,2]
[394301124,1763433060923,-385.43349502,0.00023794,2]
[394301125,1763433060932,-11216.92,0.000239,7]
[394301126,1763433060941,-6105.0,0.00023967,2]
[394301127,1763433060950,-5391.46803672,0.00024577,2]
[394301128,1763433060959,-26185.0,0.00024656,2]
[394301129,1763433060969,-153.760692,0.00024658,7]
[394301130,1763433060979,-151.0,0.00024658,7]
[394301131,1763433060988,-151.0,0.00024658,7]
[394301132,1763433061001,-151.0,0.00024658,7]
[394301133,1763433061014,-151.0,0.00024658,7]
[394301134,1763433061023,-155.092663,0.00024658,7]
[394301135,1763433061034,-151.899162,0.00024658,7]
[394301136,1763433061044,-151.0,0.00024658,7]
[394301137,1763433061053,-151.0,0.00024658,7]
[394301138,1763433061062,-299.906248,0.00024658,7]
[394301139,1763433061073,-151.0,0.00024658,7]
[394301140,1763433061082,-151.0,0.00024658,7]
[394301141,1763433061092,-151.0,0.00024658,7]
[394301142,1763433061101,-171.423371,0.00024658,7]
[394301143,1763433061110,-233.851274,0.00024658,7]
[394301144,1763433061120,-151.0,0.00024658,7]
[394301145,1763433061129,-151.0,0.00024658,7]
[394301146,1763433061139,-151.0,0.00024658,7]
[394301147,1763433061149,-151.0,0.00024658,7]
[394301148,1763433061158,-151.0,0.00024658,7]
[394301149,1763433061169,-151.0,0.00024658,7]
[394301150,1763433061178,-151.0,0.00024658,7]
[394301151,1763433061188,-151.0,0.00024658,7]
[394301152,1763433061197,-151.0,0.00024658,7]
[394301153,1763433061207,-168.348153,0.00024658,7]
[394301154,1763433061217,-152.867026,0.00024658,7]
[394301155,1763433061226,-151.0,0.00024658,7]
[394301156,1763433061236,-151.0,0.00024658,7]
[394301157,1763433061245,-151.0,0.00024658,7]
[394301158,1763433061255,-151.0,0.00024658,7]
[394301159,1763433061270,-223.219636,0.00024658,7]
[394301160,1763433061279,-151.0,0.00024658,7]
[394301161,1763433061289,-151.0,0.00024658,7]
[394301162,1763433061299,-151.000006,0.00024658,7]
[394301163,1763433061309,-151.0,0.00024658,7]
[394301164,1763433061318,-151.574641,0.00024658,7]
[394301165,1763433061328,-151.0,0.00024658,7]
[394301166,1763433061338,-157.344722,0.00024658,7]
[394301167,1763433061347,-151.0,0.00024658,7]
[394301168,1763433061357,-151.0,0.00024658,7]
[394301169,1763433061367,-271.160532,0.00024658,7]
[394301170,1763433061377,-151.0,0.00024658,7]
[394301171,1763433061387,-283.343322,0.00024658,7]
[394301172,1763433061397,-151.0,0.00024658,7]
[394301173,1763433061407,-151.0,0.00024658,7]
[394301174,1763433061417,-151.0,0.00024658,7]
[394301175,1763433061427,-178.786716,0.00024658,7]
[394301176,1763433061437,-151.881983,0.00024658,7]
[394301177,1763433061447,-151.0,0.00024658,7]
[394301178,1763433061457,-151.0,0.00024658,7]
[394301179,1763433061467,-151.0,0.00024658,7]
[394301180,1763433061477,-151.0,0.00024658,7]
[394301181,1763433061487,-151.0,0.00024658,7]
[394301182,1763433061497,-151.0,0.00024658,7]
[394301183,1763433061506,-152.983814,0.00024658,7]
[394301184,1763433061520,-151.0,0.00024658,7]
[394301185,1763433061530,-243.07366,0.00024658,7]
[394301186,1763433061544,-151.0,0.00024658,7]
[394301187,1763433061554,-161.001146,0.00024658,7]
[394301188,1763433061564,-153.844317,0.00024658,7]
[394301189,1763433061573,-151.0,0.00024658,7]
[394301190,1763433061583,-151.0,0.00024658,7]
[394301191,1763433061593,-151.0,0.00024658,7]
[394301192,1763433061603,-151.0,0.00024658,7]
[394301193,1763433061613,-151.0,0.00024658,7]
[394301194,1763433061623,-151.0,0.00024658,7]
[394301195,1763433061633,-154.890095,0.00024658,7]
[394301196,1763433061643,-170.882132,0.00024658,7]
[394301197,1763433061653,-151.0,0.00024658,7]
[394301198,1763433061662,-151.0,0.00024658,7]
[394301199,1763433061672,-151.0,0.00024658,7]
[394301200,1763433061682,-151.0,0.00024658,7]
[394301201,1763433061691,-151.0,0.00024658,7]
[394301202,1763433061702,-151.0,0.00024658,7]
[394301203,1763433061711,-151.0,0.00024658,7]
[394301204,1763433061721,-151.0,0.00024658,7]
[394301205,1763433061731,-154.026096,0.00024658,7]
[394301206,1763433061741,-151.0,0.00024658,7]
[394301207,1763433061752,-151.0,0.00024658,7]
[394301208,1763433061764,-221.835704,0.00024658,7]
[394301209,1763433061773,-151.0,0.00024658,7]
[394301210,1763433061783,-155.697006,0.00024658,7]
[394301211,1763433061793,-151.0,0.00024658,7]
[394301212,1763433061802,-151.0,0.00024658,7]
[394301213,1763433061812,-151.0,0.00024658,7]
[394301214,1763433061821,-151.0,0.00024658,7]
[394301215,1763433061831,-151.0,0.00024658,7]
[394301216,1763433061841,-151.0,0.00024658,7]
[394301217,1763433061851,-151.0,0.00024658,7]
[394301218,1763433061860,-211.654687,0.00024658,7]
[394301219,1763433061870,-151.0,0.00024658,7]
[394301220,1763433061879,-151.0,0.00024658,7]
[394301221,1763433061889,-153.994588,0.00024658,7]
[394301222,1763433061899,-211.654687,0.00024658,7]
[394301223,1763433061909,-151.0,0.00024658,7]
[394301224,1763433061918,-164.195911,0.00024658,7]
[394301225,1763433061928,-169.175494,0.00024658,7]
[394301226,1763433061937,-211.654687,0.00024658,7]
[394301227,1763433061947,-211.654687,0.00024658,7]
[394301228,1763433061957,-211.654687,0.00024658,7]
[394301229,1763433061967,-211.654687,0.00024658,7]
[394301230,1763433061976,-211.654687,0.00024658,7]
[394301231,1763433061986,-211.654687,0.00024658,7]
[394301232,1763433061999,-151.0,0.00024658,7]
[394301233,1763433062009,-211.654687,0.00024658,7]
[394301234,1763433062021,-151.0,0.00024658,7]
[394301235,1763433062030,-151.0,0.00024658,7]
[394301236,1763433062042,-211.654687,0.00024658,7]
[394301237,1763433062051,-151.0,0.00024658,7]
[394301238,1763433062061,-211.654687,0.00024658,7]
[394301239,1763433062071,-153.918391,0.00024658,7]
[394301240,1763433062080,-211.654687,0.00024658,7]
[394301241,1763433062089,-211.654687,0.00024658,7]
[394301242,1763433062099,-211.654687,0.00024658,7]
[394301243,1763433062109,-211.654687,0.00024658,7]
[394301244,1763433062118,-211.654687,0.00024658,7]
[394301245,1763433062128,-151.0,0.00024658,7]
[394301246,1763433062139,-156.089112,0.00024658,7]
[394301247,1763433062148,-158.89822,0.00024658,7]
[394301248,1763433062158,-158.89822,0.00024658,7]
[394301249,1763433062167,-158.89822,0.00024658,7]
[394301250,1763433062177,-158.89822,0.00024658,7]
[394301251,1763433062187,-154.468127,0.00024658,7]
[394301252,1763433062197,-158.89822,0.00024658,7]
[394301253,1763433062207,-158.89822,0.00024658,7]
[394301254,1763433062217,-158.89822,0.00024658,7]
[394301255,1763433062226,-158.89822,0.00024658,7]
[394301256,1763433062236,-158.89822,0.00024658,7]
[394301257,1763433062246,-158.89822,0.00024658,7]
[394301258,1763433062255,-158.89822,0.00024658,7]
[394301259,1763433062268,-158.89822,0.00024658,7]
[394301260,1763433062278,-158.89822,0.00024658,7]
[394301261,1763433062287,-158.89822,0.00024658,7]
[394301262,1763433062298,-158.89822,0.00024658,7]
[394301263,1763433062308,-158.89822,0.00024658,7]
[394301264,1763433062318,-153.099569,0.00024658,7]
[394301265,1763433062327,-151.0,0.00024658,7]
[394301266,1763433062337,-151.0,0.00024658,7]
[394301267,1763433062347,-151.0,0.00024658,7]
[394301268,1763433062357,-151.0,0.00024658,7]
[394301269,1763433062366,-151.0,0.00024658,7]
[394301270,1763433062376,-151.0,0.00024658,7]
[394301271,1763433062386,-151.0,0.00024658,7]
[394301272,1763433062395,-270.893587,0.00024658,7]
[394301273,1763433062405,-151.0,0.00024658,7]
[394301274,1763433062414,-151.0,0.00024658,7]
[394301275,1763433062424,-287.045087,0.00024658,7]
[394301276,1763433062433,-151.0,0.00024658,7]
[394301277,1763433062443,-152.401181,0.00024658,7]
[394301278,1763433062453,-151.0,0.00024658,7]
[394301279,1763433062462,-151.0,0.00024658,7]
[394301280,1763433062472,-151.0,0.00024658,7]
[394301281,1763433062481,-151.0,0.00024658,7]
[394301282,1763433062492,-151.0,0.00024658,7]
[394301283,1763433062502,-151.0,0.00024658,7]
[394301284,1763433062515,-151.0,0.00024658,7]
[394301285,1763433062525,-151.0,0.00024658,7]
[394301286,1763433062534,-151.0,0.00024658,7]
[394301287,1763433062545,-169.715295,0.00024658,7]
[394301288,1763433062555,-151.0,0.00024658,7]
[394301289,1763433062564,-151.0,0.00024658,7]
[394301290,1763433062574,-151.0,0.00024658,7]
[394301291,1763433062583,-151.0,0.00024658,7]
[394301292,1763433062593,-151.0,0.00024658,7]
[394301293,1763433062602,-151.0,0.00024658,7]